fUST/lending_fUST_20251108
["ID","MTS","AMOUNT","RATE_DAILY","PERIOD"]
[393365118,1762531832660,-150.0,0.00016892,2]
[393365120,1762531832670,-820.0,0.00016892,2]
[393365122,1762531832680,-175.55,0.00016892,2]
[393365123,1762531832690,-175.55,0.00016892,3]
[393365124,1762531832700,-500.01748358,0.000169,2]
[393365125,1762531832710,-177.0,0.00018892,2]
[393365127,1762531832719,-204.0,0.00020892,2]
[393365130,1762531832729,-1225.0425227,0.00020974,2]
[393365132,1762531832739,-838.3455467,0.00021464,2]
[393365134,1762531832759,-2679.30302801,0.00022357,2]
[393365136,1762531832773,-300.0,0.00022371,2]
[393365139,1762531832783,-300.0,0.00022372,2]
[393365141,1762531832793,-300.0,0.00022372,2]
[393365143,1762531832804,-300.0,0.00022372,2]
[393365145,1762531832814,-300.0,0.00022372,2]
[393365147,1762531832823,-1200.0,0.00022372,2]
[393365149,1762531832833,-160.10809041,0.00022373,2]
[393365151,1762531832842,-3634.11919136,0.00022373,2]
[393365153,1762531832852,-240.49890251,0.0002245,2]
[393365155,1762531832862,-720.0,0.00022456,2]
[393365157,1762531832872,-35600.57788673,0.00022457,2]
[393365234,1762531838941,-14399.42211327,0.00022457,2]
[393365235,1762531838951,-3075.47,0.0002246,3]
[393365236,1762531838961,-1977.09,0.0002246,3]
[393365237,1762531838972,-988.55,0.0002246,3]
[393365238,1762531838982,-494.27,0.0002246,3]
[393365239,1762531838993,-247.14,0.0002246,3]
[393365240,1762531839003,-500.0,0.00022468,2]
[393365241,1762531839016,-500.0,0.00022468,2]
[393365242,1762531839027,-428.20495207,0.00022468,2]
[393365243,1762531839037,-500.0,0.00022468,2]
[393365244,1762531839047,-500.0,0.00022468,2]
[393365245,1762531839057,-594.76615489,0.00022468,2]
[393365246,1762531839067,-500.0,0.00022468,2]
[393365247,1762531839078,-500.0,0.00022468,2]
[393365248,1762531839088,-500.0,0.00022468,2]
[393365249,1762531839098,-500.0,0.00022468,2]
[393365250,1762531839108,-500.0,0.00022468,2]
[393365251,1762531839119,-500.0,0.00022468,2]
[393365253,1762531839130,-500.0,0.00022468,2]
[393365255,1762531839140,-500.0,0.00022468,2]
[393365257,1762531839150,-500.0,0.00022468,2]
[393365258,1762531839160,-394.09216606,0.00022468,2]
[393365261,1762531839170,-500.0,0.00022468,2]
[393365263,1762531839181,-500.0,0.00022468,2]
[393365265,1762531839191,-298.6573074,0.00022468,2]
[393365266,1762531839200,-500.0,0.00022468,2]
[393365267,1762531839211,-500.0,0.00022468,2]
[393365268,1762531839221,-500.0,0.00022468,2]
[393365270,1762531839233,-500.0,0.00022468,2]
[393365272,1762531839244,-500.0,0.00022468,2]
[393365274,1762531839255,-500.0,0.00022468,2]
[393365276,1762531839266,-500.0,0.00022468,2]
[393365278,1762531839277,-500.0,0.00022468,2]
[393365280,1762531839288,-500.0,0.00022468,2]
[393365282,1762531839298,-500.0,0.00022468,2]
[393365284,1762531839309,-500.0,0.00022468,2]
[393365286,1762531839319,-500.0,0.00022468,2]
[393365288,1762531839330,-500.0,0.00022468,2]
[393365290,1762531839341,-500.0,0.00022468,2]
[393365292,1762531839351,-500.0,0.00022468,2]
[393365294,1762531839362,-500.0,0.00022468,2]
[393365296,1762531839373,-500.0,0.00022468,2]
[393365298,1762531839383,-500.0,0.00022468,2]
[393365300,1762531839393,-500.0,0.00022468,2]
[393365302,1762531839403,-269.69018311,0.00022469,2]
[393365304,1762531839414,-627.65770723,0.00022469,2]
[393365306,1762531839424,-60423.39184586,0.0002247,2]
[393365308,1762531839437,-43610.64312528,0.0002247,2]
[393365310,1762531839448,-14736.59135852,0.0002247,2]
[393365578,1762531843911,-741.43,0.0002246,3]
[393365579,1762531843922,-1174.19984208,0.0002247,2]
[393365582,1762531844193,-3992.71779243,0.0002247,2]
[393365583,1762531844205,-415.07431893,0.0002247,2]
[393365601,1762531847219,-242.3936751,0.00019058,2]
[393365602,1762531847230,-242.3936751,0.0002088,2]
[393365603,1762531847239,-179.68,0.0002246,10]
[393365604,1762531847249,-1335.5326578,0.0002247,2]
[393365639,1762532209515,151.58,0.00032877,120]
[393365651,1762532555858,174.0,0.00020768,120]
[393365652,1762532557150,174.0,0.00021807,120]
[393365653,1762532558433,174.0,0.00022897,120]
[393365654,1762532559724,174.0,0.00024042,120]
[393365655,1762532560976,174.0,0.00025244,120]
[393365656,1762532563268,174.0,0.00026506,120]
[393365657,1762532564542,174.0,0.00027831,120]
[393365658,1762532565820,174.0,0.00029223,120]
[393365659,1762532567100,174.0,0.00030684,120]
[393365660,1762532568379,174.0,0.00032218,120]
[393365770,1762533031801,-503.9204088,0.00017,2]
[393365772,1762533031820,-825.0,0.00017,2]
[393365774,1762533031830,-315.95171828,0.00019058,2]
[393365776,1762533031840,-300.0,0.00020091,2]
[393365778,1762533031851,-1200.0,0.00020091,2]
[393365781,1762533031867,-544.13848789,0.00020092,2]
[393365783,1762533031878,-979.4492782,0.00020092,2]
[393365785,1762533031888,-1741.24316125,0.00020092,2]
[393365787,1762533031899,-199.44578115,0.00020584,2]
[393365789,1762533031910,-9234.718198,0.00020872,2]
[393365791,1762533031919,-2313.93861256,0.00021077,2]
[393365793,1762533031929,-999.0,0.00021077,2]
[393365795,1762533031939,-267.5347055,0.000211,2]
[393365797,1762533031948,-8053.9980692,0.00021334,2]
[393365799,1762533031957,-325.28753803,0.00021441,2]
[393365802,1762533031967,-420.0,0.00021874,2]
[393365804,1762533031977,-286.0,0.00021979,2]
[393365806,1762533031987,-570.97486613,0.0002199,2]
[393365808,1762533031996,-160.10809041,0.00022273,2]
[393365809,1762533032006,-2764.9873751,0.000223,2]
[393365811,1762533032019,-213.54252314,0.00022359,2]
[393365813,1762533032028,-206.15116614,0.0002236,2]
[393365815,1762533032038,-219.38946354,0.0002236,2]
[393365817,1762533032046,-377.82,0.0002236,3]
[393365819,1762533032058,-2078.03,0.0002236,3]
[393365821,1762533032067,-1039.02,0.0002236,3]
[393365824,1762533032076,-194.48,0.0002236,10]
[393365825,1762533032086,-519.51,0.0002236,3]
[393365827,1762533032096,-162.07,0.0002236,10]
[393365830,1762533032105,-2422.74612758,0.00022361,2]
[393365832,1762533032114,-249.54176145,0.00022369,2]
[393365833,1762533032123,-162.86915255,0.00022369,2]
[393365836,1762533032132,-500.0,0.00022369,2]
[393365838,1762533032142,-266.01024067,0.00022369,2]
[393365840,1762533032152,-300.0,0.00022369,2]
[393365842,1762533032161,-500.0,0.00022369,2]
[393365844,1762533032170,-500.0,0.00022369,2]
[393365846,1762533032179,-500.0,0.00022369,2]
[393365847,1762533032188,-500.0,0.00022369,2]
[393365849,1762533032198,-194.86573074,0.00022369,2]
[393365852,1762533032207,-164.95722553,0.00022369,2]
[393365854,1762533032216,-391232.6693585,0.0002237,2]
[393365856,1762533032230,-1700.57769177,0.0002237,2]
[393365944,1762533037712,-4564.475656,0.0002237,2]
[393365951,1762533037773,-41749.69849104,0.0002237,2]
[393365953,1762533037786,-2062.30864677,0.0002237,2]
[393366369,1762533044467,-482.04252329,0.0001955,7]
[393366406,1762533046662,-330.0,0.0001955,7]
[393366850,1762533222429,-3296.31809361,0.0001955,7]
[393366851,1762533222674,-837.86978258,0.00021705,2]
[393366852,1762533222727,-4162.13021742,0.00021705,2]
[393366853,1762533222775,-5000.0,0.00021924,2]
[393366854,1762533222843,-178.69344344,0.00022145,2]
[393366855,1762533222854,-1497.05612172,0.00022268,2]
[393366856,1762533222878,-0.01,0.00022268,2]
[393366858,1762533225377,-510.27385214,0.00021605,2]
[393366859,1762533225410,-922.29783151,0.00022268,2]
[393366860,1762533225447,-810.35,0.00022358,10]
[393366861,1762533225486,-300.0,0.00022367,2]
[393366862,1762533225518,-174.67923302,0.00022368,2]
[393366863,1762533225608,-991.72711799,0.00022368,2]
[393366864,1762533225803,-3573.08104867,0.00022368,2]
[393366865,1762533225818,-4443.47471535,0.00022368,2]
[393366866,1762533225827,-4564.80816666,0.00022368,2]
[393366867,1762533228541,-4443.47471535,0.00022368,2]
[393366868,1762533228574,-1113.0605693,0.00022368,2]
[393366870,1762533231430,-5000.0,0.00022144,2]
[393366871,1762533231473,-0.01,0.00022368,2]
[393366872,1762533234491,-829.81,0.00022358,3]
[393366873,1762533234519,-445.17768729,0.00022368,2]
[393366874,1762533234557,-7450.03462542,0.00022368,2]
[393366875,1762533234604,-299.42952564,0.00022368,2]
[393366876,1762533234633,-392.86806671,0.00022368,2]
[393366877,1762533234668,-8615.4148153,0.00022368,2]
[393366918,1762533243588,-5000.0,0.00022144,2]
[393366919,1762533243625,-0.01,0.00022368,2]
[393366928,1762533246592,-576.2,0.00022358,3]
[393366929,1762533246623,-300.0,0.00022367,2]
[393366930,1762533246674,-8247.61,0.00022368,2]
[393366931,1762533249632,-760.66288201,0.00022368,2]
[393366932,1762533249667,-8478.68423598,0.00022368,2]
[393366940,1762533252806,-529.59864603,0.00022368,2]
[393366942,1762533252839,-8940.81270794,0.00022368,2]
[393366960,1762533258772,-5000.0,0.00022144,2]
[393366961,1762533258806,-0.01,0.00022358,3]
[393366963,1762533264798,-5000.0,0.00022134,2]
[393366964,1762533264832,-0.01,0.00022358,3]
[393366971,1762533267916,-288.08,0.00022358,3]
[393366972,1762533267945,-864.35,0.00022358,3]
[393366974,1762533268097,-67.47017407,0.00022368,2]
[393366976,1762533268164,-7560.20965186,0.00022368,2]
[393366988,1762533271065,-1448.07323015,0.00022368,2]
[393366990,1762533271105,-7103.8635397,0.00022368,2]
[393366992,1762533271374,-1904.41934231,0.00022368,2]
[393366993,1762533271410,-6191.17131538,0.00022368,2]
[393366994,1762533271531,-2817.11156663,0.00022368,2]
[393366995,1762533271566,-4365.78686674,0.00022368,2]
[393366997,1762533271663,-4642.49601527,0.00022368,2]
[393366998,1762533271698,-715.01796946,0.00022368,2]
[393366999,1762533271795,-1706.74508745,0.00022368,2]
[393367000,1762533271818,-6586.5198251,0.00022368,2]
[393367001,1762533271922,-991.72711799,0.00022368,2]
[393367002,1762533271973,-8016.55576402,0.00022368,2]
[393367004,1762533272055,-991.72711799,0.00022368,2]
[393367005,1762533272077,-8016.55576402,0.00022368,2]
[393367007,1762533272175,-991.72711799,0.00022368,2]
[393367008,1762533272198,-8016.55576402,0.00022368,2]
[393367012,1762533273898,-991.72711799,0.00022368,2]
[393367013,1762533273925,-8016.55576402,0.00022368,2]
[393367014,1762533274250,-991.72711799,0.00022368,2]
[393367015,1762533274275,-8016.55576402,0.00022368,2]
[393367016,1762533274365,-991.72711799,0.00022368,2]
[393367017,1762533274390,-8016.55576402,0.00022368,2]
[393367018,1762533274475,-991.72711799,0.00022368,2]
[393367019,1762533274501,-8016.55576402,0.00022368,2]
[393367020,1762533277135,-5000.0,0.00022144,2]
[393367021,1762533277170,-0.01,0.00022368,2]
[393367022,1762533277368,-991.73711799,0.00022368,2]
[393367023,1762533277391,-8016.53576402,0.00022368,2]
[393367024,1762533277518,-991.72711799,0.00022368,2]
[393367025,1762533277542,-8016.55576402,0.00022368,2]
[393367026,1762533277638,-991.72711799,0.00022368,2]
[393367027,1762533277661,-8016.55576402,0.00022368,2]
[393367028,1762533280020,-991.72711799,0.00022368,2]
[393367029,1762533280044,-8016.55576402,0.00022368,2]
[393367030,1762533280120,-991.72711799,0.00022368,2]
[393367031,1762533280143,-8016.55576402,0.00022368,2]
[393367032,1762533280280,-991.72711799,0.00022368,2]
[393367033,1762533280304,-8016.55576402,0.00022368,2]
[393367034,1762533280406,-991.72711799,0.00022368,2]
[393367035,1762533280430,-8016.55576402,0.00022368,2]
[393367036,1762533286050,-5000.0,0.00022144,2]
[393367037,1762533286134,-0.01,0.00022368,2]
[393367038,1762533286177,-991.73711799,0.00022368,2]
[393367039,1762533286201,-8016.53576402,0.00022368,2]
[393367040,1762533286290,-991.72711799,0.00022368,2]
[393367041,1762533286314,-8016.55576402,0.00022368,2]
[393367042,1762533286424,-991.72711799,0.00022368,2]
[393367043,1762533286448,-8016.55576402,0.00022368,2]
[393367083,1762533403005,4217.42499639,0.00021594,2]
[393367084,1762533404944,331.22247,0.00013699,2]
[393367085,1762533405209,331.22247,0.00020187,2]
[393367095,1762533445959,150.0,0.000202,2]
[393367096,1762533457624,150.0,0.000202,2]
[393367097,1762533469737,150.0,0.000202,2]
[393367098,1762533481118,150.0,0.000202,2]
[393367100,1762533485741,4520.14006361,0.00021684,2]
[393367101,1762533485762,479.85993639,0.00021684,2]
[393367102,1762533494806,5000.0,0.00021684,2]
[393367103,1762533504299,4520.15006361,0.00021684,2]
[393367104,1762533504323,479.84993639,0.00021684,2]
[393367105,1762533506540,150.0,0.000202,2]
[393367106,1762533507061,150.0,0.000202,2]
[393367111,1762533513236,5000.0,0.00021684,2]
[393367112,1762533517620,150.0,0.000202,2]
[393367113,1762533518032,150.0,0.000202,2]
[393367114,1762533521343,3920.16006361,0.00021684,2]
[393367115,1762533521366,1079.83993639,0.00021684,2]
[393367116,1762533529400,150.0,0.000202,2]
[393367117,1762533529714,5000.0,0.00021684,2]
[393367118,1762533539790,2181.76340549,0.00021684,2]
[393367119,1762533547906,1588.40665812,0.00021684,2]
[393367120,1762533547928,3411.59334188,0.00021684,2]
[393367121,1762533556191,5000.0,0.00021684,2]
[393367122,1762533573971,1588.41665812,0.00021684,2]
[393367123,1762533573998,3411.58334188,0.00021684,2]
[393367126,1762533582288,5000.0,0.00021684,2]
[393367127,1762533586681,2000.0,0.00036952,20]
[393367128,1762533590570,1588.42665812,0.00021684,2]
[393367130,1762533599352,5000.0,0.00021604,2]
[393367137,1762533658375,1000.0,0.00021082,2]
[393367165,1762533737812,150.0,0.000211,2]
[393367176,1762533751102,150.0,0.000211,2]
[393367186,1762533762912,150.0,0.000211,2]
[393367190,1762533776157,150.0,0.000211,2]
[393367192,1762533786391,1039.76108157,0.00021378,2]
[393367193,1762533797607,150.0,0.000211,2]
[393367194,1762533800498,150.0,0.000211,2]
[393367195,1762533802622,5000.0,0.00021378,2]
[393367197,1762533809109,150.0,0.000211,2]
[393367198,1762533811378,150.0,0.000211,2]
[393367199,1762533818711,1760.24891843,0.00021378,2]
[393367200,1762533818734,3239.75108157,0.00021378,2]
[393367201,1762533820361,150.0,0.000211,2]
[393367202,1762533823236,150.0,0.000211,2]
[393367205,1762533826604,5000.0,0.00021378,2]
[393367206,1762533831170,150.0,0.000211,2]
[393367207,1762533834260,150.0,0.000211,2]
[393367208,1762533842103,150.0,0.000211,2]
[393367209,1762533842240,1010.25891843,0.00021378,2]
[393367210,1762533842266,3989.74108157,0.00021378,2]
[393367212,1762533850293,5000.0,0.00021378,2]
[393367213,1762533856730,150.0,0.000211,2]
[393367214,1762533858753,860.26891843,0.00021378,2]
[393367215,1762533858783,2098.41660521,0.00021378,2]
[393367216,1762533860200,150.0,0.000211,2]
[393367217,1762533860238,150.0,0.000211,2]
[393367220,1762533866789,5000.0,0.00021378,2]
[393367221,1762533868121,150.0,0.000211,2]
[393367222,1762533874862,5000.0,0.00021378,2]
[393367225,1762533890655,5000.0,0.00021378,2]
[393367409,1762534238273,-1200.0,0.00020747,2]
[393367411,1762534238284,-300.0,0.00020747,2]
[393367413,1762534238296,-5000.0,0.00020748,2]
[393367415,1762534238306,-1017.0,0.00020748,2]
[393367417,1762534238316,-5000.0,0.00020958,2]
[393367419,1762534238326,-300.0,0.00021268,2]
[393367421,1762534238336,-300.0,0.00021268,2]
[393367423,1762534238346,-275.0,0.00021269,2]
[393367425,1762534238355,-189.84298416,0.00021383,2]
[393367576,1762534240132,-500.0,0.00021383,2]
[393367578,1762534240144,-510.15701584,0.00021383,2]
[393367580,1762534240154,-150.0,0.000216,2]
[393367582,1762534240164,-150.0,0.000216,2]
[393367584,1762534240174,-256.16236465,0.00021789,2]
[393367586,1762534240184,-103.65730135,0.00021789,2]
[393367594,1762534240314,-919.96750781,0.00021789,2]
[393367595,1762534240323,-1899.25445395,0.00021789,2]
[393367596,1762534240333,-207.40908845,0.00021812,2]
[393367597,1762534240342,-293.36894978,0.00022257,2]
[393367613,1762534241365,191.5379465,0.00019058,2]
[393367629,1762534243151,-311.26453977,0.00022034,2]
[393367649,1762534247029,-1034.0,0.00022034,2]
[393367651,1762534247040,-3654.73546023,0.00022034,2]
[393367652,1762534247050,-3514.34236963,0.00022257,2]
[393367653,1762534247059,-16433.9655283,0.00022357,2]
[393367655,1762534247069,-2608.8255394,0.00022357,2]
[393367656,1762534247078,-500.0,0.00022367,2]
[393367657,1762534247088,-500.0,0.00022373,2]
[393367659,1762534247097,-315.95171828,0.00022386,2]
[393367660,1762534247107,-166.96283727,0.00022569,2]
[393367661,1762534247116,-300.53310709,0.00022569,2]
[393367662,1762534247126,-420.0,0.00022574,2]
[393367663,1762534247135,-1680.0,0.00022681,2]
[393367664,1762534247145,-191.5379465,0.00022701,2]
[393367665,1762534247155,-534.28107926,0.00022839,2]
[393367666,1762534247165,-300.0,0.00022907,20]
[393367667,1762534247176,-300.0,0.00022907,20]
[393367668,1762534247185,-300.0,0.00022907,20]
[393367669,1762534247199,-300.0,0.00022907,20]
[393367670,1762534247210,-300.0,0.00022907,20]
[393367671,1762534247219,-300.0,0.00022907,20]
[393367672,1762534247229,-300.0,0.00022907,20]
[393367673,1762534247240,-300.0,0.00022907,20]
[393367674,1762534247249,-300.0,0.00022907,20]
[393367675,1762534247259,-300.0,0.00022907,20]
[393367676,1762534247271,-300.0,0.00022907,20]
[393367678,1762534247282,-300.0,0.00022907,20]
[393367679,1762534247291,-300.0,0.00022907,20]
[393367680,1762534247302,-300.0,0.00022907,20]
[393367682,1762534247311,-300.0,0.00022907,20]
[393367683,1762534247320,-600.0,0.00022908,20]
[393367684,1762534247330,-1000.0,0.00022915,2]
[393367685,1762534247339,-411.0,0.00023,2]
[393367686,1762534247348,-1615.16408506,0.00023083,2]
[393367687,1762534247357,-320.21618082,0.00023084,2]
[393367688,1762534247367,-1615.16408504,0.00023097,2]
[393367689,1762534247376,-12472.35785064,0.000231,2]
[393367690,1762534247385,-1249.0,0.000231,2]
[393367691,1762534247394,-183.51117693,0.000231,2]
[393367692,1762534247404,-500.0,0.000231,2]
[393367693,1762534247414,-154.76472584,0.000231,2]
[393367694,1762534247423,-1615.16408504,0.0002311,2]
[393367695,1762534247432,-420.0,0.00023129,2]
[393367696,1762534247441,-420.0,0.00023129,2]
[393367697,1762534247450,-1249.0,0.00023155,2]
[393367698,1762534247459,-500.0,0.00023155,2]
[393367699,1762534247468,-786.83,0.00023162,3]
[393367700,1762534247477,-500.0,0.00023172,2]
[393367701,1762534247487,-500.0,0.00023172,2]
[393367702,1762534247496,-500.0,0.00023172,2]
[393367703,1762534247505,-500.0,0.00023172,2]
[393367704,1762534247514,-17395.87084623,0.00023172,2]
[393367705,1762534247526,-500.0,0.00023172,2]
[393367706,1762534247535,-500.0,0.00023172,2]
[393367707,1762534247544,-500.0,0.00023172,2]
[393367708,1762534247553,-500.0,0.00023172,2]
[393367709,1762534247562,-17395.87084623,0.00023172,2]
[393367710,1762534247570,-500.0,0.00023172,2]
[393367711,1762534247579,-500.0,0.00023172,2]
[393367712,1762534247588,-500.0,0.00023172,2]
[393367713,1762534247597,-404.16471501,0.00023172,2]
[393367714,1762534247606,-500.0,0.00023172,2]
[393367715,1762534247615,-500.0,0.00023172,2]
[393367716,1762534247624,-17395.87084623,0.00023172,2]
[393367717,1762534247634,-622.22382451,0.00023172,2]
[393367718,1762534247643,-500.0,0.00023172,2]
[393367719,1762534247654,-500.0,0.00023172,2]
[393367720,1762534247664,-17395.87084623,0.00023172,2]
[393367721,1762534247675,-500.0,0.00023172,2]
[393367722,1762534247686,-500.0,0.00023172,2]
[393367723,1762534247697,-361.50997863,0.00023172,2]
[393367724,1762534247708,-438.51949943,0.00023172,2]
[393367725,1762534247719,-17395.87084623,0.00023172,2]
[393367726,1762534247730,-500.0,0.00023172,2]
[393367727,1762534247740,-17395.87084623,0.00023172,2]
[393367728,1762534247749,-154.81831569,0.00023172,2]
[393367729,1762534247759,-396.28470313,0.00023172,2]
[393367730,1762534247770,-500.0,0.00023172,2]
[393367731,1762534247781,-500.0,0.00023172,2]
[393367732,1762534247792,-17395.87084623,0.00023172,2]
[393367733,1762534247802,-500.0,0.00023172,2]
[393367734,1762534247812,-500.0,0.00023172,2]
[393367735,1762534247823,-17395.87084623,0.00023172,2]
[393367736,1762534247833,-17395.87084623,0.00023172,2]
[393367737,1762534247843,-500.0,0.00023172,2]
[393367738,1762534247853,-500.0,0.00023172,2]
[393367739,1762534247863,-17395.87084623,0.00023172,2]
[393367740,1762534247874,-500.0,0.00023172,2]
[393367741,1762534247884,-500.0,0.00023172,2]
[393367742,1762534247893,-17395.87084623,0.00023172,2]
[393367743,1762534247903,-500.0,0.00023172,2]
[393367744,1762534247913,-500.0,0.00023172,2]
[393367745,1762534247926,-17395.87084623,0.00023172,2]
[393367746,1762534247936,-17395.87084623,0.00023172,2]
[393367747,1762534247946,-336.05367871,0.00023172,2]
[393367748,1762534247957,-500.0,0.00023172,2]
[393367749,1762534247968,-17395.87084623,0.00023172,2]
[393367750,1762534247979,-500.0,0.00023172,2]
[393367751,1762534247989,-500.0,0.00023172,2]
[393367752,1762534247998,-17395.87084623,0.00023172,2]
[393367753,1762534248010,-17395.87084623,0.00023172,2]
[393367754,1762534248023,-500.0,0.00023172,2]
[393367755,1762534248033,-17395.87084623,0.00023172,2]
[393367756,1762534248043,-17395.87084623,0.00023172,2]
[393367757,1762534248053,-500.0,0.00023172,2]
[393367758,1762534248063,-17395.87084623,0.00023172,2]
[393367759,1762534248073,-500.0,0.00023172,2]
[393367760,1762534248083,-17395.87084623,0.00023172,2]
[393367761,1762534248092,-17395.87084623,0.00023172,2]
[393367762,1762534248102,-500.0,0.00023172,2]
[393367763,1762534248111,-500.0,0.00023172,2]
[393367764,1762534248121,-17395.87084623,0.00023172,2]
[393367765,1762534248131,-17395.87084623,0.00023172,2]
[393367766,1762534248141,-500.0,0.00023172,2]
[393367767,1762534248150,-17395.87084623,0.00023172,2]
[393367768,1762534248160,-500.0,0.00023172,2]
[393367769,1762534248171,-17395.87084623,0.00023172,2]
[393367770,1762534248181,-17395.87084623,0.00023172,2]
[393367771,1762534248193,-17395.87084623,0.00023172,2]
[393367772,1762534248204,-17395.87084623,0.00023172,2]
[393367773,1762534248213,-17395.87084623,0.00023172,2]
[393367774,1762534248227,-17395.87084623,0.00023172,2]
[393367775,1762534248237,-17395.87084623,0.00023172,2]
[393367776,1762534248247,-17395.87084623,0.00023172,2]
[393367777,1762534248257,-17395.87084623,0.00023172,2]
[393367778,1762534248269,-17395.87084623,0.00023172,2]
[393367779,1762534248279,-17395.87084623,0.00023172,2]
[393367780,1762534248290,-17395.87084623,0.00023172,2]
[393367781,1762534248302,-17395.87084623,0.00023172,2]
[393367782,1762534248312,-17395.87084623,0.00023172,2]
[393367783,1762534248323,-17395.87084623,0.00023172,2]
[393367784,1762534248334,-17395.87084623,0.00023172,2]
[393367785,1762534248344,-17395.87084623,0.00023172,2]
[393367786,1762534248354,-17395.87084623,0.00023172,2]
[393367787,1762534248364,-17395.87084623,0.00023172,2]
[393367788,1762534248375,-17395.87084623,0.00023172,2]
[393367789,1762534248385,-11449.98105446,0.00023172,2]
[393367817,1762534519140,234.63347694,0.00019058,2]
[393367819,1762534601363,302.72757545,0.00018963,2]
[393367820,1762534601413,302.72757545,0.00019152,2]
[393367821,1762534601471,151.81769752,0.00019342,2]
[393367822,1762534625823,150.0,0.000191,2]
[393367828,1762534637011,150.0,0.000191,2]
[393367829,1762534648050,150.0,0.000191,2]
[393367830,1762534659780,150.0,0.000191,2]
[393367831,1762534671368,150.0,0.000191,2]
[393367832,1762534681782,150.0,0.000193,2]
[393367833,1762534683596,150.0,0.000191,2]
[393367834,1762534692827,150.0,0.000193,2]
[393367835,1762534694313,150.0,0.000191,2]
[393367836,1762534703571,150.0,0.000193,2]
[393367837,1762534706887,150.0,0.000191,2]
[393367838,1762534714390,150.0,0.000193,2]
[393367839,1762534717349,150.0,0.000191,2]
[393367841,1762535029115,5000.0,0.0002023,2]
[393367842,1762535036989,-382.36893376,0.0002053,2]
[393367844,1762535044638,5000.0,0.0002023,2]
[393367845,1762535052997,5000.0,0.0002023,2]
[393367846,1762535068581,5000.0,0.0002023,2]
[393367847,1762535076431,5000.0,0.0002023,2]
[393367848,1762535081972,-207.25518694,0.0002053,2]
[393367849,1762535086987,-156.69884262,0.0002053,2]
[393367850,1762535088745,-407.43103388,0.0002053,2]
[393367851,1762535091838,5000.0,0.0002023,2]
[393367852,1762535092546,-46.2460028,0.0002053,2]
[393367853,1762535092568,-151.46812148,0.0002053,2]
[393367854,1762535095214,-148.53187852,0.0002053,2]
[393367855,1762535095236,-197.56504176,0.00020531,2]
[393367856,1762535095257,-41.65108696,0.00020531,2]
[393367857,1762535099720,5000.0,0.0002023,2]
[393367858,1762535114740,5000.0,0.0002023,2]
[393367859,1762535115373,-238.98064205,0.0002053,2]
[393367860,1762535118036,-61.01935795,0.0002053,2]
[393367861,1762535118059,-225.28556917,0.0002053,2]
[393367862,1762535121005,-74.71443083,0.0002053,2]
[393367863,1762535121028,-81.29625494,0.0002053,2]
[393367864,1762535122601,5000.0,0.0002023,2]
[393367865,1762535131606,724.11173951,0.0002023,2]
[393367866,1762535139609,5000.0,0.0002023,2]
[393367867,1762535140331,-197.3277777,0.0002053,2]
[393367868,1762535142411,-21.37596736,0.0002053,2]
[393367869,1762535142433,-310.406319,0.0002053,2]
[393367870,1762535145687,-168.21771364,0.0002053,2]
[393367871,1762535147786,2990.03953769,0.0002023,2]
[393367872,1762535149364,-281.78228636,0.0002053,2]
[393367873,1762535151559,-218.21771364,0.0002053,2]
[393367874,1762535163423,5000.0,0.0002023,2]
[393367875,1762535164697,-221.37596736,0.0002053,2]
[393367876,1762535164721,-0.95028399,0.0002053,2]
[393367877,1762535167937,-253.44630284,0.0002053,2]